[Event "Slovakia Open 2022"]
[Site "Bratislava"]
[Date "2022.09.30"]
[Round "3.16"]
[White "Bombek, Peter"]
[Black "Rosol, Philip"]
[Result "1/2-1/2"]
[ECO "A45"]
[WhiteElo "2083"]
[BlackElo "1885"]
[Annotator "TA"]
[PlyCount "121"]
[EventDate "2022.09.30"]
[EventCountry "SVK"]
[SourceTitle "playchess.com"]
[Source "ChessBase"]
[SourceQuality "1"]
[TimeControl "2700+10"]

{[%evp 9,120,47,51,45,56,42,52,12,22,12,21,14,21,28,44,19,29,16,17,-1,-7,0,0,0,58,72,79,81,81,74,84,64,67,70,66,-19,-27,-32,-39,-34,0,0,0,-37,41,44,41,41,161,81,83,85,58,17,178,160,159,161,321,84,78,65,363,357,317,318,412,150,162,141,181,154,149,148,154,6,6,0,0,0,0,0,0,0,0,0,0,0,0,0,0,0,0,-8,0,0,0,0,0,0,0,0,0,0,0,0,0,0,0,0,0,0,0]} 1. d4 {[%emt 0:00:03]} Nf6 {[%emt 0:00:01]} 2. Bg5 {[%emt 0:00:01]} Ne4 {[%emt 0:00:02]} 3. Bf4 {[%emt 0:00:01]} c5 {[%emt 0:01:46]} 4. f3 {[%emt 0:00:02]} Nf6 {[%emt 0:00:17]} 5. dxc5 {[%emt 0:00:05]} Qa5+ {[%emt 0:01:50]} 6. Nc3 {[%emt 0:00:05] A45: Trompowsky Attack.} Nc6 {[%emt 0:00:36]} 7. e4 {[%emt 0:00:10]} e5 {[%emt 0:01:16]} 8. Be3 {[%emt 0:01:12] White is slightly better.} Bxc5 {[%emt 0:00:36]} 9. Bxc5 {[%emt 0:00:10]} Qxc5 {[%emt 0:00:02]} 10. Qd2 {[%emt 0:00:05]} a6 {[%emt 0:01:18][%cal Od7d5] [#]} 11. O-O-O $146 {[%emt 0:01:21]} ({Predecessor:} 11. Nge2 d5 12. exd5 Nb4 13. O-O-O Bf5 14. Ng3 Bxc2 15. a3 Bxd1 16. axb4 Qxb4 17. Qxd1 {1-0 (53) Dauenheimer,T-Traub,B (2200) Germany 1998}) 11... b5 {[%emt 0:00:54]} 12. Kb1 {[%emt 0:04:20]} Bb7 {[%emt 0:01:27]} 13. g4 {[%emt 0:00:25] [#] And now g5 would win.} h6 {[%emt 0:01:47]} 14. h4 {[%emt 0:01:23]} O-O-O {[%emt 0:01:38]} 15. Bh3 {[%emt 0:00:46]} b4 {[%emt 0:02:10]} 16. Na4 {[%emt 0:00:39]} Qb5 {[%emt 0:01:38]} (16... Qa5 $1 $11 17. g5 Ne8) 17. b3 $14 {[%emt 0:00:10]} Nd4 {[%emt 0:01:07]} 18. Rh2 {[%emt 0:02:22]} Kb8 {[%emt 0:01:25]} 19. Bf1 {[%emt 0:00:50]} Qa5 {[%emt 0:01:37]} 20. g5 {[%emt 0:04:38]} Nh5 {[%emt 0:03:09]} 21. a3 {[%emt 0:03:59]} d5 {[%emt 0:02:04][%cal Od4f3]} 22. Qxb4 {[%emt 0:03:15]} ({White should play} 22. Qe1 $14) 22... Qxb4 $11 {[%emt 0:00:40]} 23. axb4 {[%emt 0:00:02]} dxe4 {[%emt 0:00:33]} 24. fxe4 {[%emt 0:01:51]} Ng3 {[%emt 0:02:16] [#] Strongly threatening ...hxg5.} 25. gxh6 {[%emt 0:01:13]} Rxh6 {[%emt 0:01:11]} 26. Kb2 {[%emt 0:08:53]} Bxe4 {[%emt 0:06:10]} (26... Nxe4 $15 27. h5 Rdh8) 27. Bc4 $14 {[%emt 0:02:21]} f5 {[%emt 0:00:56]} 28. Nc5 {[%emt 0:00:25]} Bb7 {[%emt 0:00:56]} (28... Rdd6 $1 $14) 29. c3 {[%emt 0:01:30]} (29. Nxb7 $18 Kxb7 30. Rg2) 29... Nc6 {[%emt 0:00:32]} 30. Rxd8+ {[%emt 0:01:06]} Nxd8 {[%emt 0:00:01]} 31. Rd2 $36 {[%emt 0:00:44][%mdl 2048] White has some pressure.} Nc6 {[%emt 0:00:38]} (31... Kc8 $1 $11 {and Black stays safe.}) 32. Rd7 $18 {[%emt 0:00:29]} Bc8 {[%emt 0:00:23]} 33. Rxg7 {[%emt 0:00:14] White is much more active.} f4 {[%emt 0:00:49]} (33... Ne4 {might work better.} 34. Nf3 (34. Bxa6 Nxc5 35. Bxc8 Nd3+ 36. Kc2 Ndxb4+ 37. cxb4 Kxc8 $11) (34. Nxa6+ Bxa6 35. Bxa6 Nxb4 $16) 34... Nxc5) 34. Bd5 $2 {[%emt 0:01:24]} ({Less strong is} 34. Nxa6+ Bxa6 35. Bxa6 Nxb4 $16) (34. Bxa6 $18 {is more deadly. Hoping for b5.} Bxa6 35. Nxa6+ Ka8 36. Nc7+ Kb8 37. Na6+ Ka8 38. b5) 34... Nf5 $16 {[%emt 0:01:02]} 35. Rf7 {[%emt 0:01:33] Bxc6 is the strong threat.} Nfe7 {[%emt 0:00:35][%mdl 8192]} ({Better is} 35... Nd6 $14) 36. Be4 $18 {[%emt 0:00:33]} Rxh4 {[%emt 0:00:23]} 37. Nf3 {[%emt 0:00:05]} Rh6 {[%emt 0:00:39]} 38. Nxe5 $2 {[%emt 0:00:35]} Nxe5 {[%emt 0:01:07]} 39. Rxe7 {[%emt 0:00:02]} Ng4 {[%emt 0:00:20]} 40. Rf7 {[%emt 0:00:36]} Rf6 {[%emt 0:00:32]} 41. Rxf6 {[%emt 0:00:10]} Nxf6 $16 {[%emt 0:00:02][%mdl 4096] Endgame KBN-KBN} 42. Bd3 {[%emt 0:00:27]} (42. Bg2 $16) 42... f3 $1 $11 {[%emt 0:01:04] The position is equal.} 43. Nxa6+ {[%emt 0:00:00]} Bxa6 {[%emt 0:00:29]} 44. Bxa6 {[%emt 0:00:00] KB-KN} f2 {[%emt 0:00:04]} 45. Kc2 {[%emt 0:01:24]} Ne4 {[%emt 0:00:11]} 46. Bd3 {[%emt 0:00:32]} Ng3 {[%emt 0:00:12]} 47. c4 {[%emt 0:00:07]} f1=Q {[%emt 0:00:11]} 48. Bxf1 {[%emt 0:00:01]} Nxf1 {[%emt 0:00:05] KN-K3P} 49. Kd3 {[%emt 0:00:03]} Kc7 {[%emt 0:00:20]} 50. Kd4 {[%emt 0:00:11]} Nd2 {[%emt 0:00:26]} 51. c5 {[%emt 0:00:08]} Nxb3+ {[%emt 0:00:14] KN-KPP} 52. Kc4 {[%emt 0:00:00]} Nd2+ {[%emt 0:00:08]} 53. Kd5 {[%emt 0:00:03]} Nb1 {[%emt 0:00:21]} 54. b5 {[%emt 0:00:02]} Nc3+ {[%emt 0:00:04]} 55. Kc4 {[%emt 0:00:01]} Nxb5 {[%emt 0:00:02]} 56. Kxb5 {[%emt 0:00:01] KP-K} Kb7 {[%emt 0:00:10]} 57. c6+ {[%emt 0:00:01]} Kc7 {[%emt 0:00:01]} 58. Kc5 {[%emt 0:00:10]} Kc8 {[%emt 0:00:00]} 59. Kb6 {[%emt 0:00:00] Threatening mate with c7.} Kb8 {[%emt 0:00:00]} 60. c7+ {[%emt 0:00:01]} Kc8 {[%emt 0:00:02]} 61. Kc6 {[%emt 0:00:01] Black defended with fortune.  Weighted Error Value: White=0.29 (precise) /Black=0.33} 1/2-1/2

[Event "Slovakia Open 2022"]
[Site "Bratislava"]
[Date "2022.09.30"]
[Round "3.17"]
[White "Merva, Frantisek"]
[Black "Csontos, Aron"]
[Result "1/2-1/2"]
[ECO "D05"]
[WhiteElo "1981"]
[BlackElo "1962"]
[Annotator "TA"]
[PlyCount "104"]
[EventDate "2022.09.30"]
[EventCountry "SVK"]
[SourceTitle "playchess.com"]
[Source "ChessBase"]
[SourceQuality "1"]
[TimeControl "2700+10"]

{[%evp 18,104,8,0,0,17,69,21,47,38,28,-14,-16,-32,-37,-61,-38,-79,-72,-85,-60,-34,-14,-10,-8,-16,-14,-40,0,0,0,0,0,-19,-12,-15,18,-13,-14,-14,-12,-20,-4,-18,-18,-12,0,-27,-29,-78,-64,-40,0,0,0,0,8,8,8,8,8,-8,0,0,8,8,8,8,8,8,8,8,305,8,8,8,8,8,8,8,8,8,8,8,8,8,8,8,8]} 1. d4 {[%emt 0:00:03]} Nf6 {[%emt 0:00:03]} 2. Nf3 {[%emt 0:00:08]} d5 {[%emt 0:00:06]} 3. e3 {[%emt 0:00:28]} c5 {[%emt 0:00:30]} 4. c3 {[%emt 0:00:07]} e6 {[%emt 0:01:58]} 5. Bd3 {[%emt 0:01:26]} Nc6 {[%emt 0:01:12]} 6. O-O {[%emt 0:02:25]} Bd6 {[%emt 0:01:09]} 7. Nbd2 {[%emt 0:00:35]} O-O {[%emt 0:00:17]} 8. dxc5 {[%emt 0:00:42]} Bxc5 {[%emt 0:00:04]} 9. b4 {[%emt 0:00:12]} Bd6 {[%emt 0:00:11]} 10. Bb2 {[%emt 0:00:05]} a6 {[%emt 0:00:33] D05: Colle System with ...e6.} 11. a3 {[%emt 0:00:10]} e5 {[%emt 0:01:58]} (11... Ne5 $11 12. Nxe5 Bxe5) 12. e4 {[%emt 0:00:07]} (12. c4 $14) 12... Bg4 {[%emt 0:00:55]} 13. exd5 {[%emt 0:21:26]} (13. h3 $5 {[%cal Rh3g4]} Be6 14. Ng5 $14) 13... Nxd5 {[%emt 0:00:08] [#]} 14. Ne4 $146 {[%emt 0:00:05]} ({Predecessor:} 14. Qc2 Nf6 15. h3 Bh5 16. Ng5 Bg6 17. Bxg6 hxg6 18. Rad1 Qc7 19. c4 Nd4 20. Bxd4 exd4 {1-0 (42) Godart,F (2359)-Lebret,J (2084) Avoine 2013}) 14... Be7 {[%emt 0:03:30]} 15. Bc2 {[%emt 0:04:46]} Nf4 {[%emt 0:02:39]} 16. Qxd8 {[%emt 0:00:04]} Raxd8 {[%emt 0:00:06]} 17. Rfe1 {[%emt 0:00:06]} Bxf3 {[%emt 0:00:33]} 18. gxf3 {[%emt 0:00:53]} f5 {[%emt 0:01:24]} 19. Ng3 {[%emt 0:00:53]} Rd2 {[%emt 0:00:24]} 20. Bb3+ {[%emt 0:02:15]} Kh8 {[%emt 0:00:12]} 21. Bc1 {[%emt 0:00:16]} Rd3 {[%emt 0:01:53][%csl LRc3,LRf3]} 22. Re3 {[%emt 0:01:19]} g6 {[%emt 0:01:44]} 23. Rxd3 {[%emt 0:03:17]} Nxd3 {[%emt 0:00:04] Pair of Knights!} 24. Bh6 {[%emt 0:00:26]} Rd8 {[%emt 0:00:38]} 25. Rd1 {[%emt 0:00:05]} Nf4 {[%emt 0:04:16]} 26. Rxd8+ {[%emt 0:00:48]} Bxd8 {[%emt 0:00:02]} 27. Bxf4 {[%emt 0:00:52]} exf4 $11 {[%emt 0:00:03][%mdl 4096] Endgame KBN-KBN} 28. Ne2 {[%emt 0:00:05]} Bf6 {[%emt 0:00:13]} 29. Kf1 {[%emt 0:00:27]} Kg7 {[%emt 0:01:07]} 30. Bd5 {[%emt 0:00:36]} Kf8 {[%emt 0:02:49]} 31. a4 {[%emt 0:01:04]} Ke7 {[%emt 0:01:02]} 32. Ke1 {[%emt 0:00:34]} Kd6 {[%emt 0:00:29]} 33. Bxc6 {[%emt 0:00:10]} (33. Bb3 $11) 33... Kxc6 {[%emt 0:00:24] KB-KN} 34. Kd2 {[%emt 0:00:05]} b5 {[%emt 0:02:03]} 35. axb5+ {[%emt 0:00:04]} axb5 {[%emt 0:00:02] [#] ...g5 is the strong threat.} (35... Kxb5 $5 36. Kd3 $8 Bh4 $11) 36. Kd3 {[%emt 0:00:06]} g5 {[%emt 0:00:22] Hoping for ...Kd5.} 37. c4 {[%emt 0:00:33]} bxc4+ {[%emt 0:00:26]} 38. Kxc4 {[%emt 0:00:07]} h5 {[%emt 0:00:51]} 39. Nc1 {[%emt 0:02:00]} g4 {[%emt 0:01:42]} 40. Nd3 {[%emt 0:00:13]} h4 {[%emt 0:00:14]} 41. b5+ {[%emt 0:00:08]} Kd6 {[%emt 0:00:46]} 42. Nxf4 {[%emt 0:00:56] Strongly threatening Nd5.} Be5 {[%emt 0:00:05]} 43. Ng6 {[%emt 0:00:10]} Bxh2 {[%emt 0:06:14]} 44. Nxh4 {[%emt 0:00:00]} Ke5 {[%emt 0:00:44][%mdl 8192] [#]} (44... Kc7 $11 {and Black has nothing to worry.}) 45. fxg4 $2 {[%emt 0:00:07]} ({Only move:} 45. b6 $18) 45... fxg4 {[%emt 0:00:08] The position is equal.} 46. Kd3 {[%emt 0:00:10]} g3 {[%emt 0:00:55]} 47. f3 {[%emt 0:00:17]} Bg1 {[%emt 0:00:47]} 48. Ke2 {[%emt 0:00:09]} Kd5 {[%emt 0:00:37]} 49. Kf1 {[%emt 0:00:01]} Bd4 {[%emt 0:00:25]} 50. Kg2 {[%emt 0:00:02]} Be5 {[%emt 0:00:08]} 51. Ng6 {[%emt 0:00:11]} Bd6 {[%emt 0:00:08]} 52. f4 {[%emt 0:00:00]} Bxf4 {[%emt 0:00:10] Weighted Error Value: White=0.23 (precise) /Black=0.23 (precise)} 1/2-1/2

[Event "Slovakia Open 2022"]
[Site "Bratislava"]
[Date "2022.09.30"]
[Round "3.18"]
[White "Kukan, Michal"]
[Black "Mikulas, Dusan"]
[Result "1/2-1/2"]
[ECO "B30"]
[WhiteElo "1767"]
[BlackElo "2047"]
[Annotator "TA"]
[PlyCount "20"]
[EventDate "2022.09.30"]
[EventCountry "SVK"]
[SourceTitle "playchess.com"]
[Source "ChessBase"]
[SourceQuality "1"]
[TimeControl "2700+10"]

{[%evp 9,20,-8,-2,-7,-6,-5,0,0,-7,-10,-16,-16,0]} 1. e4 {[%emt 0:00:19]} c5 {[%emt 0:00:03]} 2. Nf3 {[%emt 0:00:06]} d6 {[%emt 0:00:03]} 3. c4 {[%emt 0:00:04]} e5 {[%emt 0:00:30]} 4. Nc3 {[%emt 0:00:07]} Nc6 {[%emt 0:00:08]} 5. Be2 {[%emt 0:00:10]} g6 {[%emt 0:00:11] The position is equal.} 6. O-O {[%emt 0:00:07] B30: Sicilian: 2...Nc6 3 Bb5, lines without ...g6.} Bg7 {[%emt 0:00:02]} 7. d3 {[%emt 0:00:14]} Nge7 {[%emt 0:00:02]} 8. Bg5 {[%emt 0:00:10]} h6 {[%emt 0:00:38]} 9. Be3 {[%emt 0:00:09]} O-O {[%emt 0:00:11] [#]} 10. a3 $146 {[%emt 0:00:13]} ({Predecessor:} 10. Qd2) 10... Kh7 {[%emt 0:00:28] A rather calm draw.  Weighted Error Value: White=0.02 (flawless) /Black=0.01 (flawless)} 1/2-1/2

[Event "Slovakia Open 2022"]
[Site "Bratislava"]
[Date "2022.09.30"]
[Round "3.19"]
[White "Vadila, Ondrej"]
[Black "Melih, Mario"]
[Result "1-0"]
[ECO "A05"]
[WhiteElo "2178"]
[BlackElo "1633"]
[Annotator "TA"]
[PlyCount "65"]
[EventDate "2022.09.30"]
[EventCountry "SVK"]
[SourceTitle "playchess.com"]
[Source "ChessBase"]
[SourceQuality "1"]
[TimeControl "2700+10"]

{[%evp 14,65,-9,-3,-2,-17,-24,-16,8,10,18,-61,-58,-51,-50,-130,-139,-135,-125,-124,-129,-126,-127,-128,-125,-138,-137,-136,-130,-158,-143,-173,-112,-116,-124,-116,-121,-387,-381,-379,-379,-374,-333,-327,-324,-327,-325,-319,-325,-325,-309,-308,-268,-377]} 1. g3 {[%emt 0:00:07]} d5 {[%emt 0:00:05]} 2. Nf3 {[%emt 0:00:02]} Nf6 {[%emt 0:02:32]} 3. Bg2 {[%emt 0:00:02]} g6 {[%emt 0:00:05]} 4. b3 {[%emt 0:00:02][%cal Bb2b3,Bb3b4][%mdl 32]} Bg7 {[%emt 0:00:03]} 5. Bb2 {[%emt 0:00:02]} O-O {[%emt 0:00:04]} 6. O-O {[%emt 0:00:03]} c5 {[%emt 0:00:41]} 7. c4 {[%emt 0:00:03]} d4 {[%emt 0:00:26]} 8. b4 {[%emt 0:00:02]} Nc6 {[%emt 0:00:17] A05: Réti Opening: 1 Nf3 Nf6.} 9. b5 {[%emt 0:00:08]} Na5 {[%emt 0:01:31]} 10. d3 {[%emt 0:00:03] [#]} Ng4 $146 {[%emt 0:00:36] The position is equal.} ({Predecessor:} 10... Re8 11. Re1 e5 12. Ng5 e4 13. Nd2 e3 14. fxe3 Ng4 15. Nxf7 Kxf7 16. Bd5+ Be6 17. exd4 Bxd5 18. cxd5 {0-1 (23) Hamitevici,V (2482)-Kamsky,G (2658) Chess.com INT 2022}) 11. Nbd2 {[%emt 0:00:27]} a6 {[%emt 0:04:54]} 12. Ba3 {[%emt 0:08:47]} (12. a4 $11) 12... axb5 $15 {[%emt 0:02:49]} 13. cxb5 {[%emt 0:01:16]} b6 {[%emt 0:00:28]} 14. Nxd4 {[%emt 0:13:20]} Qxd4 $17 {[%emt 0:00:14]} 15. Bxa8 {[%emt 0:00:05] [#] Hoping for Rb1.} Nxf2 $1 {[%emt 0:00:10][%mdl 512]} 16. Rxf2 {[%emt 0:02:22] Black must now prevent Rb1.} Qxa1 {[%emt 0:00:06]} 17. Qxa1 {[%emt 0:00:04]} Bxa1 {[%emt 0:00:02]} 18. Rf1 {[%emt 0:01:03]} Bd4+ {[%emt 0:00:55]} 19. Kg2 {[%emt 0:00:24]} Be6 {[%emt 0:01:02][%csl LRa2,LRa8] Prevents Bd5.} 20. Bf3 {[%emt 0:01:47]} Bxa2 {[%emt 0:00:05]} 21. h4 {[%emt 0:01:45]} Rd8 {[%emt 0:00:25]} 22. h5 {[%emt 0:00:22]} Bd5 {[%emt 0:01:11]} ({Black should play} 22... f6 $19 23. Bc1 Be6) 23. Bxd5 {[%emt 0:00:36]} Rxd5 {[%emt 0:00:02]} 24. hxg6 {[%emt 0:00:02]} hxg6 {[%emt 0:00:04]} 25. Nc4 $2 {[%emt 0:05:45][%mdl 8192] [#] Now White is beyond hope.} (25. Bc1 $17) 25... Nxc4 $19 {[%emt 0:00:08]} 26. dxc4 {[%emt 0:00:02][%mdl 4096] Endgame KRB-KRB} Re5 {[%emt 0:00:02]} 27. Re1 {[%emt 0:03:57]} Re3 {[%emt 0:00:16]} 28. Bc1 {[%emt 0:00:04] Black has a decisive advantage.} Rc3 {[%emt 0:00:02]} 29. Bf4 {[%emt 0:00:03]} Rxc4 {[%emt 0:00:41]} 30. Bc7 {[%emt 0:00:05]} Rb4 {[%emt 0:00:05]} 31. Bxb6 {[%emt 0:00:03]} Rxb5 {[%emt 0:00:02]} 32. Bc7 {[%emt 0:00:26]} c4 {[%emt 0:00:54]} 33. e3 {[%emt 0:00:11][%mdl 32768] Weighted Error Value: White=0.26 (precise) /Black=0.09 (flawless) . Loss on time!?} (33. Rc1 $142) 1-0

[Event "Slovakia Open 2022"]
[Site "Bratislava"]
[Date "2022.09.30"]
[Round "3.20"]
[White "Slivka, Vasil"]
[Black "Stevik, Patrik"]
[Result "0-1"]
[ECO "E61"]
[WhiteElo "1569"]
[BlackElo "2148"]
[Annotator "TA"]
[PlyCount "116"]
[EventDate "2022.09.30"]
[EventCountry "SVK"]
[SourceTitle "playchess.com"]
[Source "ChessBase"]
[SourceQuality "1"]
[TimeControl "2700+10"]

{[%evp 10,116,45,0,25,17,30,32,31,1,8,-33,-30,-45,-10,-30,-31,-69,-72,-52,-54,-102,-85,-136,-137,-138,-123,-165,-109,-260,-256,-263,-262,-245,-261,-250,-253,-269,-270,-269,-271,-275,-275,-266,-274,-287,-276,-283,-282,-282,-236,-368,-295,-296,-300,-305,-300,-326,-287,-281,-278,-297,-278,-347,-350,-332,-266,-265,-271,-279,-279,-283,-280,-274,-268,-360,-338,-500,-525,-512,-509,-479,-425,-620,-614,-737,-663,-748,-727,-12842,-12843,-29977,-29977,-29978,-29979,-29979,-29979,-29979,-29980,-29980,-29981,-29981,-29982,-29981,-29982,-29980,-12843,-12843,-12842]} 1. d4 {[%emt 0:00:11]} g6 {[%emt 0:00:09]} 2. c4 {[%emt 0:00:04]} Bg7 {[%emt 0:00:10]} 3. Nc3 {[%emt 0:00:03]} d6 {[%emt 0:00:00]} 4. Nf3 {[%emt 0:00:14]} Nf6 {[%emt 0:00:01]} 5. h3 {[%emt 0:00:05]} O-O {[%emt 0:00:04]} 6. e3 {[%emt 0:00:04]} a6 {[%emt 0:00:23][%cal Ba7a6,Ba6b5,Bb5b4,Bb4b3][%mdl 32] E61: King's Indian: Early deviations for White, including Smyslov System.} 7. Bd3 {[%emt 0:00:18]} c6 {[%emt 0:00:08][%cal Oe7e5,Bc7c6,Bc6c5,Bc5c4][%mdl 32] [#]} 8. O-O $146 {[%emt 0:00:04]} ({Predecessor:} 8. Qc2 b5 9. O-O Bb7 10. e4 bxc4 11. Bxc4 d5 12. exd5 cxd5 13. Bd3 Nc6 14. a3 {½-½ (67) Oyaga Valencia,J (1756)-Egues Oroz,A (1833) Huarte 2010}) 8... b5 {[%emt 0:00:02] White is slightly better.} 9. cxb5 {[%emt 0:00:10]} axb5 {[%emt 0:00:21]} 10. Ne4 {[%emt 0:00:42]} Nbd7 {[%emt 0:00:14]} 11. Ng3 {[%emt 0:00:11]} Ba6 {[%emt 0:00:16]} 12. Re1 {[%emt 0:00:14]} c5 {[%emt 0:00:03]} 13. Qe2 {[%emt 0:00:24]} c4 {[%emt 0:00:08]} 14. Bc2 {[%emt 0:00:11]} b4 {[%emt 0:00:10]} 15. Qd2 {[%emt 0:00:45]} (15. e4 $15) 15... Qb6 {[%emt 0:00:14]} 16. a3 {[%emt 0:00:48]} (16. e4 $142) 16... b3 $17 {[%emt 0:00:33]} 17. Bd1 {[%emt 0:00:48]} Rfc8 {[%emt 0:00:06] Black is more active.} 18. Be2 {[%emt 0:00:49]} Rab8 {[%emt 0:00:10]} (18... Bb7 $19 19. Qd1 Ne4 20. Nxe4 Bxe4) 19. Bf1 $2 {[%emt 0:01:59] [#] This move loses the game for White.} (19. e4 $17) 19... c3 $1 $19 {[%emt 0:00:27]} 20. bxc3 {[%emt 0:00:04]} Bxf1 {[%emt 0:00:37]} 21. Rxf1 {[%emt 0:00:56]} b2 {[%emt 0:00:04]} 22. Bxb2 {[%emt 0:00:03]} Qxb2 {[%emt 0:00:02]} 23. Qxb2 {[%emt 0:00:03]} Rxb2 {[%emt 0:00:03]} 24. Rfc1 {[%emt 0:00:04]} Nb6 {[%emt 0:00:10][%cal Bd7b6,Bb6c4,Bc4b2][%mdl 32]} 25. a4 {[%emt 0:00:04][%cal Ba3a4,Ba4a5][%mdl 32]} Ra8 {[%emt 0:00:12]} 26. a5 {[%emt 0:00:02]} Nc4 {[%emt 0:00:02]} 27. a6 {[%emt 0:00:05]} Rb6 {[%emt 0:00:04]} 28. a7 {[%emt 0:00:04]} Rb7 {[%emt 0:00:02]} 29. Ra4 {[%emt 0:00:11]} Nb2 {[%emt 0:00:05]} 30. Rb4 {[%emt 0:00:13]} (30. Rb1 $142 Rb6 31. Ra5 (31. Rb4 $2 Rxb4 32. cxb4 Na4 $19)) 30... Raxa7 {[%emt 0:00:37]} 31. Rxb7 {[%emt 0:00:08]} Rxb7 {[%emt 0:00:01]} 32. Rb1 {[%emt 0:00:15]} Rb6 {[%emt 0:00:02]} 33. Nd2 {[%emt 0:00:28]} Nc4 {[%emt 0:00:02]} 34. Rxb6 {[%emt 0:00:05]} Nxb6 {[%emt 0:00:01]} 35. c4 {[%emt 0:00:04]} Nfd7 {[%emt 0:00:08]} 36. Nge4 {[%emt 0:00:11]} f5 {[%emt 0:00:02]} 37. Ng5 {[%emt 0:00:08]} h6 {[%emt 0:00:02]} 38. Ne6 {[%emt 0:00:03]} Kf7 {[%emt 0:00:02]} 39. Nxg7 {[%emt 0:00:08]} Kxg7 {[%emt 0:00:02]} 40. Kf1 {[%emt 0:00:19]} e5 {[%emt 0:00:01]} 41. Ke2 {[%emt 0:00:16]} Kf6 {[%emt 0:00:04]} 42. f3 {[%emt 0:00:04]} g5 {[%emt 0:00:09]} 43. g4 {[%emt 0:00:10]} (43. g3 $142) 43... exd4 {[%emt 0:00:37]} 44. exd4 {[%emt 0:00:03]} d5 {[%emt 0:00:18]} 45. c5 {[%emt 0:00:06]} Nc4 {[%emt 0:00:04] [#] White must now prevent ...Nxd2.} 46. Nb3 {[%emt 0:00:32]} (46. Nb1 $142 f4 47. Nc3) 46... Nb8 {[%emt 0:00:14]} 47. Kd3 {[%emt 0:00:14]} Nc6 {[%emt 0:00:03]} 48. Ke2 {[%emt 0:00:47]} N4a5 {[%emt 0:00:10]} 49. Nxa5 {[%emt 0:00:05]} Nxa5 {[%emt 0:00:02][%mdl 4096] Endgame KN-KP} 50. Kd3 {[%emt 0:00:10]} f4 {[%emt 0:00:14]} 51. Kc3 {[%emt 0:00:03]} Nc6 {[%emt 0:00:02]} 52. Kd3 {[%emt 0:00:08]} Ke7 {[%emt 0:00:02]} 53. Kc3 {[%emt 0:00:17]} Kd7 {[%emt 0:00:02]} 54. Kd3 {[%emt 0:00:00]} Kc7 {[%emt 0:00:01]} 55. Kc3 {[%emt 0:00:38]} Kb7 {[%emt 0:00:10]} 56. Kd3 {[%emt 0:00:03]} Ka6 {[%emt 0:00:00]} 57. Kc3 {[%emt 0:00:02]} Kb5 {[%emt 0:00:00]} (57... Ka5 $142 58. Kd3 Kb4 59. h4 gxh4 60. Ke2 Nxd4+ 61. Kf1 Kxc5 62. Kf2 h3 63. Kf1 Nxf3 64. g5 hxg5 65. Kf2 h2 66. Kg2 g4 67. Kh1 d4 68. Kg2 d3 69. Kh1 d2 70. Kg2 h1=Q+ 71. Kxh1 d1=Q+ 72. Kg2 Qg1#) 58. Kd3 {[%emt 0:00:18]} Kb4 {[%emt 0:00:00] Weighted Error Value: White=0.65/Black=0.13 (very precise)} 0-1

[Event "Slovakia Open 2022"]
[Site "Bratislava"]
[Date "2022.09.30"]
[Round "3.21"]
[White "Lecky, Juraj"]
[Black "Tomcikova, Zuzana"]
[Result "1-0"]
[ECO "E04"]
[WhiteElo "2070"]
[BlackElo "1796"]
[Annotator "TA"]
[PlyCount "51"]
[EventDate "2022.09.30"]
[EventCountry "SVK"]
[SourceTitle "playchess.com"]
[Source "ChessBase"]
[SourceQuality "1"]
[TimeControl "2700+10"]

{[%evp 16,51,26,18,100,92,156,79,93,89,79,98,85,73,85,21,20,40,43,37,45,16,190,182,143,141,270,228,242,237,395,381,450,454,29996,29997,29997,29998]} 1. d4 {[%emt 0:00:04]} Nf6 {[%emt 0:00:02]} 2. c4 {[%emt 0:00:02]} e6 {[%emt 0:00:01]} 3. g3 {[%emt 0:00:09]} d5 {[%emt 0:00:14]} 4. Bg2 {[%emt 0:00:04]} dxc4 {[%emt 0:00:11]} 5. Nf3 {[%emt 0:00:03]} c5 {[%emt 0:00:38]} 6. O-O {[%emt 0:00:04]} Nc6 {[%emt 0:00:26]} 7. dxc5 {[%emt 0:00:07]} Qxd1 {[%emt 0:01:45]} 8. Rxd1 {[%emt 0:00:03]} Bxc5 {[%emt 0:00:13]} 9. Nbd2 {[%emt 0:00:03][%cal Bb1d2,Bd2c4,Bc4e5,Be5d3,Bd3c5,Bc5b7][%mdl 32]} Nd7 {[%emt 0:04:57] E04: Open Catalan: 5 Nf3.} (9... c3 $11 10. bxc3 O-O) 10. Nxc4 $16 {[%emt 0:00:17]} Ke7 {[%emt 0:00:17] [#]} ({Better is} 10... Nb6) 11. a3 $146 {[%emt 0:01:28]} (11. Ng5 $142) ({Predecessor:} 11. b3 f6 12. Bb2 b5 13. Ncd2 Rb8 14. Rac1 Nd8 15. Ne4 Bb4 16. a3 Ba5 17. b4 {½-½ (30) Stuehmeier,C (1568)-Rafiee,K (2027) Bad Zwesten 2005}) 11... Nb6 {[%emt 0:02:23] White is better.} 12. Nfe5 {[%emt 0:01:11]} Nxe5 {[%emt 0:00:27]} 13. Nxe5 {[%emt 0:00:04] Black must now prevent b4.} f6 {[%emt 0:01:30]} 14. Nd3 {[%emt 0:00:04] White is much more active. The black rooks are badly placed.} Bd6 {[%emt 0:00:25]} 15. Be3 {[%emt 0:00:23]} ({White should play} 15. Bd2 $16) 15... Nc4 $11 {[%emt 0:00:29]} 16. Bc5 $36 {[%emt 0:00:28][%mdl 2048] White has some pressure.} Bxc5 {[%emt 0:01:59]} 17. Nxc5 {[%emt 0:00:03]} Nd6 {[%emt 0:00:37]} 18. Rac1 {[%emt 0:01:14][%cal Oc5b7] Hoping for Nxb7!} Rb8 {[%emt 0:01:24] [#] This move loses the game for Black.} (18... Rd8 $1 $11 {and Black stays safe.}) 19. Nxb7 $1 $18 {[%emt 0:05:55][%mdl 512]} Nxb7 {[%emt 0:04:22]} (19... Rxb7 $2 20. Bxb7 Rd8 21. Bg2 $18) 20. Rc7+ {[%emt 0:00:50]} Kf8 {[%emt 0:01:35]} (20... Ke8 $16 {was called for.}) 21. Rdc1 {[%emt 0:00:41]} Nd6 {[%emt 0:04:41]} 22. R1c6 {[%emt 0:00:03][%mdl 64] Inhibits Ba6. Deflection} Ne8 {[%emt 0:00:02]} (22... Nb5) 23. Rxc8 {[%emt 0:00:03]} Rxb2 {[%emt 0:01:20]} 24. R6c7 {[%emt 0:01:10] White wants to mate with Bc6.} Rxe2 {[%emt 0:00:47]} (24... Rb1+ $18 25. Bf1 a6 26. Rxe8+ Kxe8 27. Rc8+ Kf7 28. Rxh8 Ra1 29. Rxh7 Kg8) 25. Bc6 {[%emt 0:00:03][%csl Gc6][%cal Rc8e8]} Re1+ {[%emt 0:00:31]} 26. Kg2 {[%emt 0:00:02] Weighted Error Value: White=0.16 (very precise) /Black=0.84} 1-0